bitfinex/quotes_BTCUSD_20251104
["timestamp","ask_amount","ask_price","bid_price","bid_amount"]
[1762233879734,3.88702547,106010.0,106000.0,11.77802949]
[1762233879974,3.86702549,106010.0,106000.0,11.46995919]
[1762233880216,3.96253494,106010.0,106000.0,11.14204164]
[1762233880435,3.89541072,106010.0,106000.0,10.85048744]
[1762233880654,3.93018055,106010.0,106000.0,10.69122161]
[1762233880882,3.88399828,106010.0,106000.0,10.50550606]
[1762233881112,3.54399828,106010.0,106000.0,10.50550606]
[1762233881373,3.92018056,106010.0,106000.0,10.08766529]
[1762233881643,3.92018056,106010.0,106000.0,9.98288791]
[1762233881881,3.92018056,106010.0,106000.0,9.57743787]
[1762233882308,3.92018056,106010.0,106000.0,9.10793655]
[1762233882517,3.91018057,106010.0,106000.0,9.10793655]
[1762233882756,3.92018056,106010.0,106000.0,9.10793655]
[1762233882969,3.92018056,106010.0,106000.0,9.10774014]
[1762233883182,3.91004866,106010.0,106000.0,9.10774014]
[1762233883913,3.91004866,106010.0,106000.0,8.66082926]
[1762233884149,3.92004865,106010.0,106000.0,8.66082926]
[1762233884381,1.22106312,106010.0,106000.0,5.91080459]
[1762233884644,0.01009,105890.0,105880.0,99.11699997]
[1762233884881,1.04225,105890.0,105880.0,99.11748385]
[1762233885789,0.80524824,105890.0,105880.0,99.11748385]
[1762233886001,0.80524824,105890.0,105880.0,99.11248385]
[1762233886462,0.80124605,105890.0,105880.0,99.09464385]
[1762233886676,0.80124605,105890.0,105880.0,99.33607693]
[1762233886677,0.79764276,105890.0,105880.0,99.33607693]
[1762233886900,0.7942901,105900.0,105880.0,99.33607693]
[1762233887110,0.4544431,105890.0,105880.0,99.30151693]
[1762233887328,0.4544431,105890.0,105880.0,99.09464385]
[1762233887329,0.00942,105890.0,105880.0,99.09464385]
[1762233887548,0.86133938,105890.0,105880.0,99.09464385]
[1762233887785,0.80162938,105890.0,105880.0,99.09464385]
[1762233888447,0.80908938,105890.0,105880.0,99.11262385]
[1762233888659,0.79220938,105890.0,105880.0,99.14718385]
[1762233888870,0.79320938,105890.0,105880.0,99.11262385]
[1762233889088,0.81663373,105890.0,105880.0,99.11262385]
[1762233889294,0.81663373,105890.0,105880.0,99.11154639]
[1762233889529,0.79320938,105890.0,105880.0,99.11154639]
[1762233889736,0.79320938,105890.0,105880.0,99.33499947]
[1762233890818,0.45320938,105890.0,105880.0,99.33499947]
[1762233891028,0.45320938,105890.0,105880.0,99.37118175]
[1762233891923,0.02838859,105950.0,105920.0,0.00944108]
[1762233892152,0.340847,105940.0,105920.0,0.58331974]
[1762233892374,0.35846,105930.0,105910.0,0.01798]
[1762233892588,0.35846,105930.0,105910.0,0.20681958]
[1762233892589,0.340847,105930.0,105910.0,0.20681958]
[1762233892800,0.340847,105930.0,105910.0,0.82469909]
[1762233893037,0.340847,105940.0,105910.0,0.01798]
[1762233893245,0.340847,105930.0,105910.0,0.83428582]
[1762233893462,0.340847,105930.0,105910.0,0.64544679]
[1762233893667,0.340847,105930.0,105910.0,0.83428484]
[1762233893869,0.340847,105930.0,105910.0,0.25096658]
[1762233894072,0.001,105930.0,105910.0,0.834286]
[1762233894530,0.001,105930.0,105920.0,0.96691763]
[1762233894759,0.001,105930.0,105920.0,0.79539599]
[1762233894962,0.001,105930.0,105920.0,0.67985974]
[1762233895166,0.001,105930.0,105920.0,0.86868149]
[1762233896161,0.34,105950.0,105920.0,0.87812257]
[1762233896462,0.340847,105950.0,105920.0,0.84356187]
[1762233896665,0.340847,105950.0,105920.0,0.67985974]
[1762233896899,0.34,105940.0,105920.0,0.86868096]
[1762233897313,0.001,105930.0,105920.0,0.86858277]
[1762233897477,0.001,105930.0,105920.0,0.67976155]
[1762233897670,0.001,105930.0,105920.0,0.09644181]
[1762233897875,0.61851889,105960.0,105920.0,0.09644181]
[1762233898049,0.340847,105950.0,105920.0,0.09644181]
[1762233898635,0.340847,105950.0,105920.0,0.29470387]
[1762233898840,0.34,105940.0,105920.0,0.06188181]
[1762233898971,0.34,105930.0,105920.0,0.06188181]
[1762233899173,0.34,105930.0,105920.0,0.28429384]
[1762233899403,0.340847,105940.0,105920.0,0.84356257]
[1762233899605,0.680847,105940.0,105930.0,0.06198]
[1762233899822,0.680847,105940.0,105910.0,0.01812508]
[1762233899823,0.340847,105930.0,105920.0,0.03456]
[1762233900409,0.36442435,105940.0,105920.0,0.28536175]
[1762233900410,0.341,105940.0,105920.0,0.28536175]
[1762233900707,0.34,105940.0,105930.0,0.25078392]
[1762233900936,0.34,105940.0,105930.0,0.28534392]
[1762233901175,0.340847,105960.0,105940.0,0.19822483]
[1762233901421,0.00859273,105960.0,105950.0,0.30328828]
[1762233901634,0.340847,105970.0,105950.0,0.11452]
[1762233901862,0.53817204,105970.0,105940.0,0.01798]
[1762233902066,0.357707,105950.0,105940.0,0.01798]
[1762233902275,0.70629901,105950.0,105940.0,0.01798]
[1762233902698,0.70629901,105950.0,105940.0,0.01712508]
[1762233902902,0.36545201,105950.0,105940.0,0.01712508]
[1762233903182,0.34859201,105950.0,105940.0,0.26789118]
[1762233903394,0.34959201,105950.0,105940.0,0.30245118]
[1762233903615,0.34959201,105950.0,105940.0,0.11366508]
[1762233903826,0.34959201,105950.0,105940.0,0.30245118]
[1762233904024,0.36547201,105950.0,105940.0,0.01712508]
[1762233904232,0.38889636,105950.0,105940.0,0.01712508]
[1762233905111,0.38889636,105950.0,105940.0,0.11366508]
[1762233905112,0.34859201,105950.0,105940.0,0.11366508]
[1762233905324,0.00859201,105950.0,105940.0,0.30245118]
[1762233905536,0.001,105950.0,105940.0,0.9229532]
[1762233905762,0.01023,105980.0,105950.0,0.19819671]
[1762233905971,0.01884855,105980.0,105950.0,0.31211068]
[1762233906185,0.01884855,105980.0,105970.0,0.01798]
[1762233906600,0.01884855,105980.0,105960.0,0.03456]
[1762233906601,0.340847,105970.0,105960.0,0.01798]
[1762233906817,0.00861855,105970.0,105960.0,0.01798]
[1762233907058,0.00861855,105970.0,105960.0,0.07996]
[1762233907271,0.34861855,105970.0,105960.0,0.08089647]
[1762233907505,0.70572555,105970.0,105960.0,0.00093647]
[1762233907714,0.92975821,105970.0,105960.0,0.00093647]
[1762233907922,0.74102555,105970.0,105960.0,0.00093647]
[1762233908128,0.68946555,105970.0,105960.0,0.00093647]
[1762233908804,0.00961855,105970.0,105960.0,0.00393647]
[1762233909019,0.00961855,105970.0,105960.0,0.10047647]
[1762233909231,0.34861855,105970.0,105960.0,0.28622694]
[1762233909438,0.34861855,105970.0,105960.0,0.28922694]
[1762233909684,0.34960879,105970.0,105960.0,0.28922694]
[1762233909895,0.34860879,105970.0,105960.0,0.09747647]
[1762233910110,0.34960879,105970.0,105960.0,0.10047647]
[1762233910540,0.34860879,105970.0,105960.0,0.09747647]
[1762233910746,0.34860879,105970.0,105960.0,0.28622694]
[1762233910956,0.34860879,105970.0,105960.0,0.09747647]
[1762233911378,0.00860879,105970.0,105960.0,0.2774995]
[1762233912206,0.00860879,105970.0,105960.0,0.89700152]
[1762233912429,0.00960137,105970.0,105960.0,0.12793131]
[1762233912645,0.00960137,105970.0,105960.0,0.09174903]
[1762233912852,0.69044837,105970.0,105960.0,0.09174903]
[1762233913055,0.34960137,105970.0,105960.0,0.09174903]
[1762233913679,0.34960137,105970.0,105960.0,0.05718903]
[1762233913892,0.34960137,105970.0,105960.0,0.003]
[1762233913893,0.69044837,105970.0,105960.0,0.003]
[1762233914100,0.93188103,105970.0,105960.0,0.003]
[1762233914309,0.97249707,105970.0,105960.0,0.003]
[1762233914521,0.36679306,105970.0,105960.0,0.06498]
[1762233914763,0.34960137,105970.0,105960.0,0.003]
[1762233914965,0.90260538,105970.0,105960.0,0.003]
[1762233915199,0.87918103,105970.0,105960.0,0.003]
[1762233915410,0.93171103,105970.0,105960.0,0.003]
[1762233915823,0.34,105950.0,105940.0,0.01812508]
[1762233916094,0.68944837,105950.0,105940.0,0.01812508]
[1762233916324,0.34860137,105950.0,105940.0,0.17329508]
[1762233916550,0.34860137,105950.0,105940.0,0.36208118]
[1762233916957,0.00860137,105950.0,105940.0,0.36208118]
[1762233917611,0.00860137,105950.0,105940.0,0.47761743]
[1762233917837,0.00960137,105950.0,105940.0,0.47961743]
[1762233918043,0.340847,105990.0,105950.0,0.23436934]
[1762233918263,0.00861618,105990.0,105980.0,0.04779]
[1762233918704,0.00861618,105990.0,105980.0,0.11082]
[1762233918913,0.00861618,105990.0,105980.0,0.39167485]
[1762233919131,0.00861618,105990.0,105980.0,1.05434856]
[1762233919571,0.00861618,105990.0,105980.0,1.09067592]
[1762233919795,0.340847,106020.0,106000.0,0.18867834]
[1762233920044,0.340847,106020.0,106010.0,0.04779]
[1762233920045,0.00862164,106020.0,106010.0,0.04779]
[1762233920299,0.00862164,106020.0,106010.0,0.20296]
[1762233921614,0.00862164,106020.0,106010.0,0.97494118]
[1762233921808,0.01042254,106020.0,106010.0,0.97494118]
[1762233922172,0.340847,106050.0,106020.0,0.29021252]
[1762233922382,0.340847,106050.0,106030.0,0.04749612]
[1762233922383,0.34,106040.0,106030.0,0.04749612]
[1762233922710,0.340847,106050.0,106030.0,0.14906741]
[1762233922913,0.01817,106040.0,106030.0,0.04649612]
[1762233923124,0.340847,106040.0,106030.0,0.13863612]
[1762233923336,0.340847,106030.0,106010.0,0.13993]
[1762233923548,0.340847,106030.0,106020.0,0.09314]
[1762233923788,0.00048287,106040.0,106030.0,0.04779]
[1762233924010,0.00048287,106040.0,106030.0,0.11082]
[1762233924206,0.34148287,106040.0,106030.0,0.20696]
[1762233924402,0.34048287,106040.0,106030.0,0.20296]
[1762233924620,0.34048287,106040.0,106030.0,0.04779]
[1762233924836,0.34048287,106040.0,106030.0,0.11082]
[1762233925065,0.34048287,106040.0,106030.0,0.20296]
[1762233925703,0.34048287,106040.0,106030.0,0.20196]
[1762233926275,0.00148287,106040.0,106030.0,0.20796]
[1762233926526,0.34148287,106040.0,106030.0,0.20796]
[1762233927352,0.00148287,106040.0,106030.0,0.11582]
[1762233927506,0.34148287,106040.0,106030.0,0.20796]
[1762233927714,0.34148287,106040.0,106030.0,0.39658586]
[1762233927916,0.34148287,106040.0,106030.0,0.20796]
[1762233928258,0.00148287,106040.0,106030.0,0.39658586]
[1762233929577,0.00148287,106040.0,106030.0,0.20796]
[1762233929777,0.00148287,106040.0,106030.0,0.39658586]
[1762233931181,0.00148287,106040.0,106030.0,0.20796]
[1762233931384,0.00148287,106040.0,106030.0,0.39658586]
[1762233932157,0.00148287,106040.0,106030.0,0.43276814]
[1762233932305,0.0004,106070.0,106060.0,0.1885725]
[1762233932502,0.00054483,106070.0,106060.0,0.14958478]
[1762233932729,0.01329483,106070.0,106060.0,0.33815728]
[1762233933630,0.01429483,106070.0,106060.0,0.34615728]
[1762233933850,0.01329483,106070.0,106060.0,0.33815728]
[1762233934068,0.00054483,106070.0,106060.0,0.33815728]
[1762233934289,0.00054483,106070.0,106060.0,0.47161956]
[1762233935141,0.00154483,106070.0,106060.0,0.47761956]
[1762233935373,0.00054483,106070.0,106060.0,0.47161956]
[1762233935776,0.00154483,106070.0,106060.0,0.47761956]
[1762233936892,0.00154483,106070.0,106060.0,0.55697353]
[1762233937307,0.01989,106120.0,106090.0,0.19793215]
[1762233937517,0.340847,106110.0,106100.0,0.18850141]
[1762233937721,0.00857657,106110.0,106100.0,0.14289]
[1762233937933,0.34942357,106110.0,106100.0,0.23410555]
[1762233938142,0.00857657,106110.0,106100.0,0.39764555]
[1762233938379,0.00857657,106110.0,106100.0,0.46106776]
[1762233938380,0.0106803,106110.0,106100.0,0.46106776]
[1762233939005,0.3506803,106110.0,106100.0,0.46106776]
[1762233939229,0.34310373,106110.0,106100.0,0.46606776]
[1762233939448,0.34310373,106110.0,106100.0,0.27757221]
[1762233939658,0.3516728,106110.0,106100.0,0.21415]
[1762233939864,0.0106728,106110.0,106100.0,0.20915]
[1762233940065,0.34210373,106110.0,106100.0,0.20915]
[1762233940287,0.34210373,106110.0,106100.0,0.39765141]
[1762233940498,0.34210373,106110.0,106100.0,0.20915]
[1762233940706,0.34210373,106110.0,106100.0,0.2527813]
[1762233940916,0.340847,106110.0,106100.0,0.2527813]
[1762233941117,0.340847,106110.0,106100.0,0.44128271]
[1762233941328,0.340847,106110.0,106100.0,0.44628271]
[1762233941538,0.340847,106110.0,106100.0,0.2577813]
[1762233941749,0.340847,106110.0,106100.0,0.11187]
[1762233941962,0.00856663,106110.0,106100.0,0.11587]
[1762233942576,0.340847,106110.0,106100.0,0.21315]
[1762233943418,0.340847,106110.0,106100.0,0.11587]
[1762233944949,0.58416064,106110.0,106100.0,0.004]
[1762233945178,0.66351461,106110.0,106100.0,0.004]
[1762233945405,1.00351461,106110.0,106100.0,0.004]
[1762233945902,0.1885067,106100.0,106080.0,0.04561]
[1762233946135,0.023,106090.0,106080.0,0.063858]
[1762233946359,0.363847,106090.0,106080.0,0.063858]
[1762233947239,0.363847,106090.0,106080.0,0.25239495]
[1762233947458,0.340847,106090.0,106080.0,0.221448]
[1762233947898,0.340847,106090.0,106080.0,0.40998495]
[1762233948349,0.340847,106090.0,106080.0,0.133898]
[1762233948571,0.340847,106090.0,106080.0,0.04961]
[1762233948981,0.340847,106090.0,106080.0,0.39573695]
[1762233950106,0.340847,106090.0,106080.0,0.2072]
[1762233950805,0.00942862,106060.0,106010.0,0.04532]
[1762233951036,0.340847,106030.0,106010.0,0.13687]
[1762233951265,0.340847,106020.0,106010.0,0.04532]
[1762233951490,0.69084699,106020.0,106010.0,0.054384]
[1762233951812,0.340847,106010.0,106000.0,0.13687]
[1762233952007,0.00999999,106010.0,106000.0,0.13735287]
[1762233952225,0.00999999,106010.0,106000.0,0.20636247]
[1762233952451,0.91009699,106010.0,106000.0,0.00345247]
[1762233952688,0.93875843,106010.0,106000.0,0.00345247]
[1762233953230,0.93875843,106010.0,106000.0,0.00845247]
[1762233953472,0.93845843,106010.0,106000.0,0.00845247]
[1762233954093,1.0178124,106010.0,106000.0,0.00845247]
[1762233954337,1.02781239,106010.0,106000.0,0.00845247]
[1762233954556,1.02640528,106010.0,106000.0,0.00345247]
[1762233954759,1.03640527,106010.0,106000.0,0.00345247]
[1762233954975,0.19814719,105990.0,105950.0,0.0002]
[1762233955191,0.45407999,105960.0,105950.0,0.00034558]
[1762233955400,0.98367746,105960.0,105950.0,0.00034558]
[1762233955614,0.98470746,105960.0,105950.0,0.00034558]
[1762233956536,0.98470746,105960.0,105950.0,0.00134558]
[1762233956744,1.00062815,105960.0,105950.0,0.00134558]
[1762233957128,1.01024366,105960.0,105950.0,0.00134558]
[1762233957939,0.98462298,105960.0,105950.0,0.00134558]
[1762233958118,0.99432297,105960.0,105950.0,0.00034558]
[1762233958486,0.8055725,105960.0,105950.0,0.00034558]
[1762233958637,0.99432297,105960.0,105950.0,0.00034558]
[1762233958840,0.99632297,105960.0,105950.0,0.00034558]
[1762233959436,0.8065425,105960.0,105950.0,0.00034558]
[1762233959885,0.11607999,105960.0,105950.0,0.00034558]
[1762233960059,0.45607999,105960.0,105950.0,0.00034558]
[1762233960261,0.80689384,105960.0,105950.0,0.00034558]
[1762233960686,1.12833367,105960.0,105950.0,0.00034558]
[1762233961099,1.12833367,105960.0,105910.0,0.04532]
[1762233961100,0.00969999,105920.0,105910.0,0.04532]
[1762233961305,0.00969999,105920.0,105900.0,0.04532]
[1762233961306,0.00969999,105910.0,105900.0,0.04532]
[1762233961563,0.00969999,105910.0,105900.0,0.04580388]
[1762233961857,0.00969999,105910.0,105900.0,0.05954956]
[1762233962000,0.34,105920.0,105910.0,0.18883958]
[1762233962208,0.34969999,105920.0,105910.0,0.04532]
[1762233962804,0.34969999,105920.0,105900.0,0.33995459]
[1762233963378,0.34,105920.0,105910.0,0.23415958]
[1762233963590,0.00969999,105930.0,105920.0,0.18882175]
[1762233963798,0.00969999,105930.0,105910.0,0.53795694]
[1762233964224,0.39542,105950.0,105920.0,0.18882175]
[1762233964452,0.34969999,105930.0,105920.0,0.19826283]
[1762233964676,0.34969999,105930.0,105910.0,0.47191694]
[1762233965506,0.34969999,105930.0,105910.0,0.19428142]
[1762233966160,0.00969999,105920.0,105900.0,0.04580388]
[1762233966360,0.00969999,105920.0,105900.0,0.13735388]
[1762233966565,0.340847,105910.0,105900.0,0.13735388]
[1762233967069,0.340847,105910.0,105900.0,0.20339388]
[1762233967490,0.00969999,105920.0,105900.0,0.39225129]
[1762233967670,0.00969999,105920.0,105910.0,0.4446675]
[1762233967900,0.00969999,105920.0,105910.0,0.42578355]
[1762233968326,0.00969999,105930.0,105910.0,0.43522552]
[1762233968963,0.00969999,105930.0,105910.0,0.15759]
[1762233969172,0.00969999,105930.0,105910.0,0.34842745]
[1762233969377,0.00969999,105930.0,105910.0,0.34642745]
[1762233969628,0.04466999,105930.0,105910.0,0.15759]
[1762233969864,0.00969999,105910.0,105900.0,0.23466037]
[1762233970096,0.00969999,105910.0,105900.0,0.13735388]
[1762233970317,0.00969999,105910.0,105900.0,0.20339388]
[1762233970911,0.00969999,105910.0,105900.0,0.39225129]
[1762233971336,0.00969999,105910.0,105900.0,0.39525129]
[1762233971940,0.00969999,105910.0,105900.0,0.20639388]
[1762233972776,0.00969999,105910.0,105900.0,0.39525129]
[1762233972970,0.00969999,105910.0,105900.0,0.44365772]
[1762233973192,0.03497,105930.0,105920.0,0.18882175]
[1762233973193,0.34969999,105930.0,105920.0,0.18882175]
[1762233973436,0.47381998,105960.0,105930.0,0.18880392]
[1762233973437,0.00969999,105940.0,105930.0,0.18880392]
[1762233973647,0.00969999,105940.0,105920.0,0.19826283]
[1762233973850,0.35072999,105940.0,105920.0,0.25953879]
[1762233974207,0.40559999,105940.0,105910.0,0.21622397]
[1762233974423,0.35054699,105930.0,105920.0,0.001]
[1762233974807,0.340847,105920.0,105910.0,0.04532]
[1762233975216,0.35211699,105920.0,105900.0,0.04580388]
[1762233975421,0.87938657,105910.0,105900.0,0.00048388]
[1762233975631,0.87992657,105910.0,105900.0,0.00048388]
[1762233975833,0.93528657,105910.0,105900.0,0.00048388]
[1762233976254,0.95852797,105910.0,105900.0,0.00048388]
[1762233976444,1.03788194,105910.0,105900.0,0.00048388]
[1762233976644,1.10169658,105910.0,105900.0,0.00048388]
[1762233977057,1.33787886,105910.0,105900.0,0.0024964]
[1762233978052,1.34087886,105910.0,105900.0,0.0024964]
[1762233978262,1.33787886,105910.0,105900.0,0.0024964]
[1762233978672,1.34087886,105910.0,105900.0,0.0024964]
[1762233979271,1.35087886,105910.0,105900.0,0.0024964]
[1762233979721,1.34087886,105910.0,105900.0,0.0024964]
[1762233979889,0.87942223,105890.0,105880.0,99.09308251]
[1762233980105,1.06698159,105890.0,105880.0,99.09322734]
[1762233980435,1.36068011,105890.0,105880.0,99.08978176]
[1762233980635,1.36068011,105890.0,105880.0,99.08965806]
[1762233981176,1.37562098,105890.0,105880.0,99.06126983]
[1762233981425,1.37562098,105890.0,105880.0,98.72270064]
[1762233981632,1.37562098,105890.0,105880.0,98.69431241]
[1762233981836,1.37562098,105890.0,105880.0,98.66591388]
[1762233982039,1.37962098,105890.0,105880.0,98.63851535]
[1762233982195,1.1073156,105890.0,105880.0,98.63851535]
[1762233982428,1.13213442,105890.0,105880.0,98.63851535]
[1762233982632,1.14213442,105890.0,105880.0,98.63851535]
[1762233982847,1.14213442,105890.0,105880.0,98.61011682]
[1762233983052,1.14213442,105890.0,105880.0,98.58171829]
[1762233983273,1.23671048,105890.0,105880.0,98.55331976]
[1762233983823,1.23671048,105890.0,105880.0,98.52492123]
[1762233984006,1.23671048,105890.0,105880.0,98.4965227]
[1762233984415,1.23671048,105890.0,105880.0,98.11471934]
[1762233984615,1.21243564,105890.0,105880.0,98.11329472]
[1762233984845,1.23671048,105890.0,105880.0,98.11329472]
[1762233985066,1.09595214,105890.0,105880.0,98.11329472]
[1762233985280,1.08595215,105890.0,105880.0,98.11329472]
[1762233985486,0.74595215,105890.0,105880.0,98.11329472]
[1762233985894,0.74595215,105890.0,105880.0,98.08489305]
[1762233985895,0.74131127,105890.0,105880.0,98.08489305]
[1762233986141,0.74131127,105890.0,105880.0,97.74631042]
[1762233986142,1.3421346,105890.0,105880.0,97.74631042]
[1762233986366,1.43671066,105890.0,105880.0,97.71790875]
[1762233986575,1.44671065,105890.0,105880.0,97.68950708]
[1762233986779,1.44671065,105890.0,105880.0,97.66110541]
[1762233986989,1.44671065,105890.0,105880.0,97.24581793]
[1762233987199,1.44671065,105890.0,105880.0,97.18901459]
[1762233987403,1.43671066,105890.0,105880.0,97.16061292]
[1762233987614,1.44671065,105890.0,105880.0,97.13221125]
[1762233987817,1.44271065,105890.0,105880.0,97.10280958]
[1762233988021,1.44271065,105890.0,105880.0,96.76422695]
[1762233988229,1.44871065,105890.0,105880.0,96.73682352]
[1762233988438,1.44871065,105890.0,105880.0,96.53428009]
[1762233988439,1.29018065,105890.0,105880.0,96.53428009]
[1762233988644,1.01328759,105890.0,105880.0,94.03704791]
[1762233988864,4.01328759,105890.0,105880.0,93.56340498]
[1762233989064,3.98834655,105890.0,105880.0,93.53500155]
[1762233989273,4.00834653,105890.0,105880.0,93.50659812]
[1762233989475,4.00834653,105890.0,105880.0,93.47719469]
[1762233989476,3.99234654,105890.0,105880.0,93.47719469]
[1762233989677,4.00234653,105890.0,105880.0,93.44879126]
[1762233989834,4.00234653,105890.0,105880.0,93.42138783]
[1762233989835,3.92999256,105890.0,105880.0,93.42138783]
[1762233990085,3.69823441,105890.0,105880.0,93.42038783]
[1762233990293,3.93276596,105890.0,105880.0,93.42038783]
[1762233990671,3.89158369,105890.0,105880.0,93.42138783]
[1762233990864,3.90158368,105890.0,105880.0,93.42185664]
[1762233995617,3.95191229,105890.0,105880.0,92.60249745]
[1762233995817,3.95191229,105890.0,105880.0,91.61535986]
[1762233996020,3.95294587,105890.0,105880.0,91.58695371]
[1762233996331,3.95294587,105890.0,105880.0,91.53014141]
[1762233996938,3.95191229,105890.0,105880.0,91.53014141]
[1762233998190,3.93024002,105890.0,105880.0,91.53014141]
[1762233998387,3.94024001,105890.0,105880.0,91.53014141]
[1762233998649,3.96159991,105890.0,105880.0,91.53014141]
[1762233999208,3.97642166,105890.0,105880.0,91.53014141]
[1762233999607,3.95642168,105890.0,105880.0,91.53014141]
[1762233999832,3.97642166,105890.0,105880.0,91.53014141]
[1762234000432,3.96642167,105890.0,105880.0,91.53014141]
[1762234000636,3.97642166,105890.0,105880.0,91.53014141]
[1762234001202,3.96642167,105890.0,105880.0,91.53014141]
[1762234001409,2.5790517,105890.0,105880.0,88.02802554]
[1762234001619,0.9780777,105890.0,105880.0,87.10819615]
[1762234001837,0.9780777,105890.0,105880.0,86.97070976]
[1762234002041,0.96324614,105890.0,105880.0,86.68178837]
[1762234002378,1.18789714,105890.0,105880.0,86.62398559]
[1762234002577,1.18789714,105890.0,105880.0,86.5955842]
[1762234002797,1.17024112,105890.0,105880.0,86.5955842]
[1762234003004,1.1902411,105890.0,105880.0,86.5955842]
[1762234003207,1.17024112,105890.0,105880.0,86.5955842]
[1762234003418,1.1902411,105890.0,105880.0,86.5955842]
[1762234003618,1.15405882,105890.0,105880.0,86.5955842]
[1762234004023,0.80405883,105890.0,105880.0,86.5955842]
[1762234004430,1.14405883,105890.0,105880.0,86.5955842]
[1762234004633,1.18024111,105890.0,105880.0,86.5955842]
[1762234005080,1.17624111,105890.0,105880.0,86.5955842]
[1762234005287,1.19307148,105890.0,105880.0,86.5955842]
[1762234005695,1.20307147,105890.0,105880.0,86.5955842]
[1762234006112,1.2053603,105890.0,105880.0,86.3814012]
[1762234006485,1.20307147,105890.0,105880.0,86.3814012]
[1762234006921,1.19307148,105890.0,105880.0,86.3814012]
[1762234007125,1.20307147,105890.0,105880.0,86.3814012]
[1762234007752,1.18307149,105890.0,105880.0,86.3814012]
[1762234007926,1.20307147,105890.0,105880.0,86.3814012]
[1762234008131,0.98337148,105890.0,105880.0,85.47862284]
[1762234008334,1.20307147,105890.0,105880.0,85.47862284]
[1762234009669,1.20107147,105890.0,105880.0,85.47862284]
[1762234010051,1.20507147,105890.0,105880.0,85.47862284]
[1762234011119,1.18107149,105890.0,105880.0,85.47862284]
[1762234011324,1.20107147,105890.0,105880.0,85.47862284]
[1762234011525,1.20407147,105890.0,105880.0,84.19355897]
[1762234011700,1.20407147,105890.0,105880.0,83.58892268]
[1762234011701,0.97442047,105890.0,105880.0,83.58892268]
[1762234011917,0.97442047,105890.0,105880.0,83.32958221]
[1762234012201,0.97442047,105890.0,105880.0,82.23048855]
[1762234012431,1.02231303,105890.0,105880.0,81.37875954]
[1762234012633,1.0248134,105890.0,105880.0,77.08350973]
[1762234012916,1.0218134,105890.0,105880.0,74.63001426]
[1762234013219,2.3049574,105890.0,105880.0,73.09377766]
[1762234013413,2.3049574,105890.0,105880.0,72.30802511]
[1762234013615,2.3049574,105890.0,105880.0,71.59977032]
[1762234013824,2.3049574,105890.0,105880.0,70.81401777]
[1762234014032,2.3049574,105890.0,105880.0,70.02826522]
[1762234014234,2.3009574,105890.0,105880.0,69.24251267]
[1762234014440,2.3009574,105890.0,105880.0,68.42837759]
[1762234014441,2.3099574,105890.0,105880.0,68.42837759]
[1762234014657,2.27727475,105890.0,105880.0,68.34920571]
[1762234014870,1.91727477,105890.0,105880.0,68.34920571]
[1762234015088,1.88938219,105890.0,105880.0,68.34920571]
[1762234015301,1.93727475,105890.0,105880.0,68.34920571]
[1762234015508,2.27727475,105890.0,105880.0,68.34920571]
[1762234015705,1.93127475,105890.0,105880.0,68.34920571]
[1762234015910,1.91644438,105890.0,105880.0,68.34920571]
[1762234016115,1.91944438,105890.0,105880.0,68.34920571]
[1762234016321,2.25944438,105890.0,105880.0,68.34920571]
[1762234016528,2.21155182,105890.0,105880.0,68.34920571]
[1762234017148,2.25944438,105890.0,105880.0,68.34920571]
[1762234017849,2.16773009,105890.0,105880.0,68.34920571]
[1762234018209,2.15773009,105890.0,105880.0,68.34920571]
[1762234018399,2.15773009,105890.0,105880.0,68.34930867]
[1762234018894,2.18255999,105890.0,105880.0,68.34930867]
[1762234019125,2.17256,105890.0,105880.0,68.34930867]
[1762234019730,1.83256,105890.0,105880.0,68.34930867]
[1762234020125,1.84255999,105890.0,105880.0,68.34930867]
[1762234020336,1.44368476,105890.0,105880.0,68.34930867]
[1762234020545,1.41226713,105890.0,105880.0,68.34930867]
[1762234020748,1.3850839,105890.0,105880.0,68.34930867]
[1762234020970,1.39355216,105890.0,105880.0,68.34930867]
[1762234021169,1.40737027,105890.0,105880.0,68.34930867]
[1762234021466,1.40837027,105890.0,105880.0,68.34930867]
[1762234021669,0.0495781,105890.0,105880.0,68.34930867]
[1762234021874,0.1048581,105890.0,105880.0,68.34930867]
[1762234022076,0.1058581,105890.0,105880.0,68.34930867]
[1762234022684,0.0505781,105890.0,105880.0,68.34930867]
[1762234023880,3.65803319,105890.0,105880.0,68.34930867]
[1762234024085,3.6728592,105890.0,105880.0,68.34930867]
[1762234024976,3.87552278,105890.0,105880.0,68.34930867]
[1762234025191,3.8728592,105890.0,105880.0,68.34930867]
[1762234026285,3.87552278,105890.0,105880.0,68.34930867]
[1762234026516,3.8904637,105890.0,105880.0,68.34930867]
[1762234026720,3.9004637,105890.0,105880.0,68.27261288]
[1762234026924,3.8994637,105890.0,105880.0,68.27261288]
[1762234027123,3.88680012,105890.0,105880.0,68.27261288]
[1762234027356,3.88780012,105890.0,105880.0,68.27261288]
[1762234027596,3.88680012,105890.0,105880.0,68.27261288]
[1762234028020,3.88880012,105890.0,105880.0,68.27261288]
[1762234028221,3.88680012,105890.0,105880.0,68.27261288]
[1762234028617,3.88780012,105890.0,105880.0,68.27261288]
[1762234029103,3.6961511,105890.0,105880.0,68.27261288]
[1762234029326,3.72097153,105890.0,105880.0,68.27261288]
[1762234029603,3.7336351,105890.0,105880.0,68.27261288]
[1762234030008,3.72363511,105890.0,105880.0,68.27261288]
[1762234030242,3.50097155,105890.0,105880.0,68.27261288]
[1762234030446,3.70997154,105890.0,105880.0,68.27261288]
[1762234030818,3.71197154,105890.0,105880.0,68.27261288]
[1762234031020,3.7383832,105890.0,105880.0,68.27261288]
[1762234031441,3.7620552,105890.0,105880.0,67.23933191]
[1762234031651,0.90573868,105890.0,105880.0,65.82968107]
[1762234031854,0.90573868,105890.0,105880.0,61.90454391]
[1762234032063,0.89673868,105890.0,105880.0,59.62718682]
[1762234032277,0.89673868,105890.0,105880.0,57.50613581]
[1762234032491,0.96882788,105890.0,105880.0,55.10515873]
[1762234032704,3.96882788,105890.0,105880.0,52.85649269]
[1762234032906,3.97782788,105890.0,105880.0,51.20989298]
[1762234033115,3.97682788,105890.0,105880.0,48.87247833]
[1762234033318,3.97682788,105890.0,105880.0,47.18643998]
[1762234033521,3.96900744,105890.0,105880.0,45.53812828]
[1762234033725,3.96900744,105890.0,105880.0,43.34533441]
[1762234033929,3.73291544,105890.0,105880.0,39.2856312]
[1762234034146,3.73291544,105890.0,105880.0,38.49992537]
[1762234034347,3.73291544,105890.0,105880.0,36.53200095]
[1762234034547,3.73311436,105890.0,105880.0,34.94261861]
[1762234034766,3.73311436,105890.0,105880.0,33.39347595]
[1762234034970,3.73311436,105890.0,105880.0,32.22912674]
[1762234035178,3.73311436,105890.0,105880.0,30.68613415]
[1762234035392,3.73311436,105890.0,105880.0,29.00420931]
[1762234035630,3.73311436,105890.0,105880.0,27.68197966]